bitfinex-derivatives/quotes_ETHF0:USTF0_20250321
["timestamp","ask_amount","ask_price","bid_price","bid_amount"]
[1742551474151,2.35599,1970.9,1970.8,2.3421]
[1742551474856,1.3407,1970.9,1970.8,2.3421]
[1742551475054,2.35595,1970.9,1970.8,2.3421]
[1742551476060,1.3407,1970.9,1970.8,2.3421]
[1742551476560,0.6620018,1971.1,1971.0,1.0152]
[1742551476858,2.0713018,1971.1,1971.0,1.0152]
[1742551477260,2.0713018,1971.1,1971.0,2.2977]
[1742551477562,3.0864418,1971.1,1971.0,2.2977]
[1742551477758,1.01525,1971.0,1970.9,1.0152]
[1742551478058,1.01525,1971.0,1970.8,1.01527]
[1742551478059,1.01525,1970.9,1970.8,1.01527]
[1742551478363,1.67435,1970.9,1970.8,1.01527]
[1742551478566,1.67435,1970.9,1970.8,41.81527]
[1742551479256,0.6591,1970.9,1970.8,41.81527]
[1742551479758,1.3334,1970.9,1970.8,41.81527]
[1742551479959,1.3334,1970.9,1970.8,43.17257]
[1742551482251,1.3334,1970.9,1970.8,46.38037]
[1742551482453,0.0050018,1971.1,1971.0,1.0152]
[1742551482652,1.3183018,1971.1,1971.0,4.223]
[1742551483154,0.0050018,1971.1,1971.0,45.023]
[1742551483948,0.0050018,1971.1,1971.0,48.296]
[1742551484861,0.0050018,1971.1,1971.0,50.796]
[1742551486854,0.0050018,1971.1,1971.0,48.296]
[1742551487156,1.3178,1971.3,1971.2,1.01509]
[1742551487355,1.3178,1971.3,1971.2,7.49589]
[1742551487756,1.3178,1971.3,1971.2,8.81769]
[1742551487958,1.3178,1971.3,1971.2,49.61769]
[1742551491264,2.33284,1971.3,1971.2,45.08809]
[1742551491663,1.3178,1971.3,1971.2,45.08809]
[1742551491868,1.3178,1971.3,1971.2,46.38189]
[1742551492070,1.3178,1971.3,1971.2,47.07589]
[1742551492458,1.3178,1971.3,1971.2,46.38189]
[1742551492963,1.3178,1971.3,1971.2,41.81509]
[1742551493164,1.3178,1971.3,1971.2,43.18399]
[1742551493470,0.642,1971.5,1971.4,1.01499]
[1742551493669,1.3374,1971.5,1971.4,1.01499]
[1742551494169,2.53684,1971.9,1971.4,3.2078]
[1742551494362,0.6696,1971.7,1971.6,1.01489]
[1742551494969,0.6696,1971.7,1971.6,2.38379]
[1742551494970,1.9717,1971.7,1971.6,2.38379]
[1742551495770,2.98654,1971.7,1971.6,2.38379]
[1742551496273,1.9717,1971.7,1971.6,2.38379]
[1742551497366,2.98654,1971.7,1971.6,2.38379]
[1742551497567,2.98654,1971.7,1971.6,1.01489]
[1742551498064,2.98654,1971.7,1971.6,2.42229]
[1742551498267,1.9717,1971.7,1971.6,2.42229]
[1742551498667,1.3021,1971.7,1971.6,2.42229]
[1742551498866,1.3021,1971.7,1971.6,3.08479]
[1742551499066,1.3021,1971.7,1971.6,6.35679]
[1742551499667,1.3021,1971.7,1971.6,4.28689]
[1742551499866,2.31694,1971.7,1971.6,4.28689]
[1742551500463,2.31694,1971.7,1971.6,5.64899]
[1742551500667,2.31694,1971.7,1971.6,1.01489]
[1742551510061,1.3021,1971.7,1971.6,1.01489]
[1742551510470,1.3021,1971.7,1971.6,4.95179]
[1742551510667,1.3021,1971.7,1971.6,6.32719]
[1742551511074,0.6534,1971.9,1971.8,1.01478]
[1742551512074,0.6949,1972.0,1971.9,1.01473]
[1742551512568,2.0842,1972.0,1971.9,1.01473]
[1742551512971,2.0842,1972.0,1971.9,2.38433]
[1742551513371,1.3893,1972.0,1971.9,5.65533]
[1742551514068,1.3893,1972.0,1971.9,6.36643]
[1742551514671,2.40398,1972.0,1971.9,6.36643]
[1742551515469,1.3893,1972.0,1971.9,6.36643]
[1742551516276,2.40398,1972.0,1971.9,6.36643]
[1742551516769,1.3893,1972.0,1971.9,6.36643]
[1742551518682,2.40398,1972.0,1971.9,6.36643]
[1742551518875,1.3893,1972.0,1971.9,6.36643]
[1742551519180,2.40398,1972.0,1971.9,6.36643]
[1742551519771,1.3893,1972.0,1971.9,2.38433]
[1742551519977,2.40398,1972.0,1971.9,2.38433]
[1742551522580,2.40398,1972.0,1971.9,1.01473]
[1742551522783,1.01473,1971.9,1971.8,1.01474]
[1742551523084,2.43063,1971.9,1971.8,1.01474]
[1742551526292,1.01478,1971.8,1971.7,1.0148]
[1742551526586,3.68738,1971.8,1971.7,1.0148]
[1742551530088,2.38403,1971.8,1971.7,1.01484]
[1742551530684,2.38403,1971.8,1971.7,2.33674]
[1742551532699,2.38398,1971.8,1971.7,2.33674]
[1742551534693,2.38398,1971.8,1971.7,1.3219]
[1742551534894,1.01489,1971.7,1971.6,1.2853]
[1742551535192,3.72409,1971.7,1971.6,1.01484]
[1742551535799,1.01489,1971.6,1971.5,4.23030052]
[1742551535997,2.42909,1971.6,1971.5,4.23030052]
[1742551536394,2.42909,1971.6,1971.5,1.02250052]
[1742551536599,2.42909,1971.6,1971.5,0.00760052]
[1742551537999,1.01504,1971.3,1971.2,40.8]
[1742551538806,1.69144,1971.3,1971.2,40.8]
[1742551539607,1.69144,1971.3,1971.2,41.81509]
[1742551539806,1.69144,1971.3,1971.2,40.8]
[1742551540702,1.69144,1971.3,1971.2,41.81509]
[1742551540901,1.69144,1971.3,1971.2,43.17419]
[1742551541099,2.39674,1971.3,1971.2,43.17419]
[1742551542100,1.3783,1971.4,1971.3,1.01504]
[1742551542402,1.3783,1971.4,1971.3,2.35394]
[1742551543905,0.6891,1971.6,1971.5,1.01494]
[1742551544105,1.3512,1971.6,1971.5,1.01494]
[1742551544506,1.3512,1971.6,1971.5,2.34834]
[1742551545005,2.36609,1971.6,1971.5,2.34834]
[1742551545709,1.3512,1971.6,1971.5,2.34834]
[1742551547203,0.00760052,1971.7,1971.6,1.01489]
[1742551547407,1.4121,1971.9,1971.8,1.01478]
[1742551549008,1.4121,1971.9,1971.8,4.22258]
[1742551552608,3.9775,1972.2,1971.8,3.2078]
[1742551552811,2.40102,1972.2,1972.1,1.01463]
[1742551553105,1.3864,1972.2,1972.1,1.01463]
[1742551553312,2.40098,1972.2,1972.1,1.01463]
[1742551553912,0.6799,1972.2,1972.1,2.37793]
[1742551554215,2.35305,1972.3,1972.2,1.01458]
[1742551554404,1.66675,1972.3,1972.2,2.37788]
[1742551555510,4.865,1972.4,1972.3,1.01453]
[1742551555710,4.865,1972.4,1972.3,2.37783]
[1742551555906,4.865,1972.4,1972.3,43.17783]
[1742551557509,1.6572,1972.4,1972.3,43.17783]
[1742551557718,0.6427,1972.4,1972.3,43.17783]
[1742551558417,1.65717,1972.4,1972.3,43.17783]
[1742551558813,0.6427,1972.4,1972.3,43.17783]
[1742551560014,0.6522,1972.5,1972.4,1.01447]
[1742551560317,0.6522,1972.5,1972.4,2.34897]
[1742551561215,0.6522,1972.5,1972.4,3.05907]
[1742551564822,1.66662,1972.5,1972.4,3.05907]
[1742551565820,1.01447,1972.4,1972.3,45.0223]
[1742551566124,1.67807,1972.4,1972.3,40.8]
[1742551567014,1.01453,1972.3,1972.2,0.00760052]
[1742551567326,4.28353,1972.3,1972.2,0.00760052]
[1742551567520,4.28353,1972.3,1972.2,40.80760052]
[1742551568726,4.28353,1972.3,1972.2,41.82218052]
[1742551569120,1.01453,1972.3,1972.2,41.82218052]
[1742551573528,1.01453,1972.3,1972.2,40.80760052]
[1742551573928,2.39783,1972.3,1972.2,40.80760052]
[1742551575125,1.01468,1972.1,1971.9,2.53674]
[1742551575321,1.01468,1972.1,1972.0,1.01463]
[1742551575523,2.33418,1972.1,1972.0,1.01463]
[1742551575826,1.01473,1972.0,1971.9,1.01469]
[1742551576129,2.33423,1972.0,1971.9,41.81469]
[1742551577430,2.33423,1972.0,1971.9,43.22229]
[1742551577826,1.3195,1972.0,1971.9,43.22229]
[1742551578027,2.33418,1972.0,1971.9,43.22229]
[1742551578327,1.3195,1972.0,1971.9,43.22229]
[1742551578929,0.00760052,1972.1,1972.0,1.01468]
[1742551579235,0.00760052,1972.1,1972.0,10.27148]
[1742551579435,1.01446,1972.5,1972.4,1.01447]
[1742551579830,1.01446,1972.5,1972.4,41.81447]
[1742551580227,1.01446,1972.5,1972.4,40.8]
[1742551580535,1.01446,1972.5,1972.4,41.81447]
[1742551580737,2.42496,1972.5,1972.4,41.81447]
[1742551581935,2.42496,1972.5,1972.4,40.8]
[1742551583634,1.01453,1972.3,1972.2,1.01454]
[1742551583939,1.01458,1972.2,1972.1,1.01459]
[1742551584234,2.30608,1972.2,1972.1,41.81459]
[1742551584939,2.30608,1972.2,1972.1,40.8]
[1742551585347,8.78288,1972.2,1972.1,40.8]
[1742551585837,8.78288,1972.2,1972.1,41.81463]
[1742551586534,5.57508,1972.2,1972.1,41.81463]
[1742551586837,5.57508,1972.2,1972.1,43.12523]
[1742551587140,5.57508,1972.2,1972.1,42.1106]
[1742551587737,5.57508,1972.2,1972.1,43.12523]
[1742551588834,5.57508,1972.2,1972.1,42.1106]
[1742551589028,6.27898,1972.2,1972.1,43.12523]
[1742551589432,6.27898,1972.2,1972.1,42.1106]
[1742551590634,6.27898,1972.2,1972.1,43.12523]
[1742551591040,6.27898,1972.2,1972.1,42.1106]
[1742551591341,6.27898,1972.2,1972.1,43.12523]
[1742551596538,6.27898,1972.2,1972.1,42.1106]
[1742551597240,6.27898,1972.2,1972.1,43.12523]
[1742551598739,5.57508,1972.2,1972.1,43.12523]
[1742551601645,1.2915,1972.2,1972.1,43.12523]
[1742551601845,1.01451,1972.4,1972.3,1.01447]
[1742551602042,1.01451,1972.4,1972.3,1.68507]
[1742551602349,5.63534,1972.5,1972.4,1.01447]
[1742551602843,2.36634,1972.5,1972.4,2.37707]
[1742551603041,4.22221,1972.6,1972.5,1.01442]
[1742551603243,4.22221,1972.6,1972.5,2.37702]
[1742551603437,6.17951,1972.6,1972.5,2.37702]
[1742551603843,5.50761,1972.6,1972.5,2.37702]
[1742551604148,2.29981,1972.6,1972.5,2.37702]
[1742551605745,2.96061,1972.6,1972.5,2.37702]
[1742551606448,2.29981,1972.6,1972.5,2.37702]
[1742551607059,1.2854,1972.6,1972.5,2.37702]
[1742551607745,3.2078,1973.1,1972.7,1.01432]
[1742551607946,1.405,1973.0,1972.9,1.01422]
[1742551608145,4.22185,1973.3,1973.2,1.01406]
[1742551608146,3.2078,1973.3,1973.2,1.01406]
[1742551608343,4.22181,1973.3,1973.2,1.01406]
[1742551608737,4.22181,1973.3,1973.2,41.81406]
[1742551609849,5.60221,1973.3,1973.2,42.49896]
[1742551611651,4.28297,1973.4,1973.3,1.01401]
[1742551611852,2.94902939,1973.8,1973.3,1.01401]
[1742551611853,3.2078,1974.1,1973.5,2.53466]
[1742551612149,1.0138,1973.8,1973.7,1.01377]
[1742551612352,1.0138,1973.8,1973.7,2.33767]
[1742551612851,1.01386,1973.6,1973.5,3.2078]
[1742551613055,1.01386,1973.6,1973.5,3.268]
[1742551613243,3.90555,1973.8,1973.5,1.01388]
[1742551613447,3.90555,1973.8,1973.4,1.3239]
[1742551613448,1.01391,1973.5,1973.4,5.54564]
[1742551613644,1.01396,1973.4,1973.3,4.97669]
[1742551613850,1.01396,1973.4,1973.3,2.33789]
[1742551613851,2.38506,1973.4,1973.3,2.33789]
[1742551616058,1.01401,1973.3,1973.2,40.8]
[1742551616258,2.98521,1973.3,1973.2,4.6323]
[1742551616555,2.98521,1973.3,1973.2,5.64636]
[1742551616751,2.98521,1973.3,1973.2,46.44636]
[1742551617150,2.98521,1973.3,1973.2,43.17936]
[1742551617344,2.98521,1973.3,1973.2,1.01406]
[1742551617545,2.98521,1973.3,1972.9,2.53544]
[1742551617546,1.01409,1973.2,1972.9,10.30094]
[1742551617753,3.09039,1973.2,1973.1,1.01412]
[1742551617954,3.09039,1973.2,1973.1,41.81412]
[1742551618853,1.411,1973.2,1973.1,41.81412]
[1742551619447,1.411,1973.2,1973.1,43.10482]
[1742551619756,2.42506,1973.2,1973.1,43.10482]
[1742551620460,1.411,1973.2,1973.1,43.10482]
[1742551621257,1.411,1973.2,1973.1,46.31262]
[1742551621955,1.6793,1973.4,1973.1,46.31262]
[1742551622160,1.295,1973.4,1973.3,1.01401]
[1742551622854,1.295,1973.4,1973.3,43.12481]
[1742551623160,2.30896,1973.4,1973.3,43.12481]
[1742551623359,1.295,1973.4,1973.3,43.12481]
[1742551624567,0.7014,1973.6,1973.3,44.6458]
[1742551624860,1.3616,1973.5,1973.4,2.34966]
[1742551625064,1.65544,1973.7,1973.6,1.01386]
[1742551625251,0.6416,1973.7,1973.6,1.01386]
[1742551625455,1.67748,1973.8,1973.7,1.01381]
[1742551626568,3.03908,1973.8,1973.7,1.01381]
[1742551628357,1.01381,1973.7,1973.6,2.34954]
[1742551628663,1.01396,1973.4,1973.3,41.81397]
[1742551628860,1.01396,1973.4,1973.3,1.01397]
[1742551629064,1.01396,1973.4,1973.3,2.35827]
[1742551629265,1.01396,1973.4,1973.3,43.15827]
[1742551629467,2.97996,1973.4,1973.3,43.15827]
[1742551631263,1.01396,1973.4,1973.3,43.15827]
[1742551631462,1.01396,1973.4,1973.3,41.81397]
[1742551631964,1.01396,1973.4,1973.3,43.11647]
[1742551632464,1.01396,1973.4,1973.3,40.8]
[1742551632762,1.01396,1973.4,1973.3,41.81401]
[1742551633168,2.31216,1973.4,1973.3,41.81401]
[1742551634370,2.31216,1973.4,1973.3,40.8]
[1742551634766,1.0141,1973.2,1973.1,1.01404]
[1742551634963,2.6378,1973.3,1973.2,1.01406]
[1742551635263,1.2982,1973.3,1973.2,45.02186]
[1742551635767,1.3396,1973.5,1973.4,1.01396]
[1742551635966,2.6236,1973.5,1973.4,1.01396]
[1742551636461,3.63751,1973.5,1973.4,41.81396]
[1742551637670,2.6236,1973.5,1973.4,41.81396]
[1742551637870,3.63751,1973.5,1973.4,41.81396]
[1742551638067,1.284,1973.5,1973.4,45.02176]
[1742551638267,1.71801,1973.7,1973.6,1.01386]
[1742551639067,0.7042,1973.7,1973.6,41.81386]
[1742551639269,1.71801,1973.7,1973.6,41.81386]
[1742551639570,3.01601,1973.7,1973.6,41.81386]
[1742551639766,2.0022,1973.7,1973.6,41.81386]
[1742551640074,2.0022,1973.7,1973.6,43.17076]
[1742551640370,3.01601,1973.7,1973.6,43.17076]
[1742551640561,2.0022,1973.7,1973.6,43.17076]
[1742551641164,3.01601,1973.7,1973.6,43.17076]
[1742551641360,2.0022,1973.7,1973.6,43.17076]
[1742551642168,2.0022,1973.7,1973.6,41.81386]
[1742551644268,3.01601,1973.7,1973.6,40.8]
[1742551645262,6.28401,1973.7,1973.6,40.8]
[1742551645864,6.28401,1973.7,1973.6,41.81386]
[1742551646669,6.28401,1973.7,1973.6,40.8]
[1742551646865,6.28401,1973.7,1973.6,41.81386]
[1742551647176,1.01394,1973.5,1973.4,1.0139]
[1742551647677,1.01394,1973.5,1973.4,41.8139]
[1742551647978,2.34054,1973.5,1973.4,41.8139]
[1742551654977,2.34054,1973.5,1973.4,40.8]
[1742551655183,2.34054,1973.5,1973.4,41.81396]
[1742551655674,5.60654,1973.5,1973.4,41.81396]
[1742551656080,1.3266,1973.5,1973.4,41.81396]
[1742551656581,2.34051,1973.5,1973.4,41.81396]
[1742551656782,2.34051,1973.5,1973.4,43.12156]
[1742551660381,1.3266,1973.5,1973.4,43.12156]
[1742551662487,1.71804,1973.7,1973.6,1.01386]
[1742551663888,3.13844,1973.7,1973.6,2.31646]
[1742551665683,2.1246,1973.7,1973.6,2.31646]
[1742551665877,3.13841,1973.7,1973.6,2.31646]
[1742551671499,3.13841,1973.7,1973.6,1.01386]
[1742551672310,3.13841,1973.7,1973.6,2.30616]
[1742551673801,1.4204,1973.7,1973.6,2.30616]
[1742551674500,2.43421,1973.7,1973.6,2.30616]
[1742551675308,1.4204,1973.7,1973.6,2.30616]
[1742551676408,2.43421,1973.7,1973.6,2.30616]
[1742551679607,2.43421,1973.7,1973.6,1.2923]
[1742551679804,1.01391,1973.5,1973.4,41.81392]
[1742551680506,5.61561,1973.5,1973.4,40.8]
[1742551680702,8.82341,1973.5,1973.4,40.8]
[1742551680900,8.82341,1973.5,1973.4,41.81396]
[1742551681106,5.61561,1973.5,1973.4,41.81396]
[1742551681406,4.6017,1973.5,1973.4,41.81396]
[1742551681607,4.6017,1973.5,1973.4,43.10866]
[1742551682306,5.61561,1973.5,1973.4,43.10866]
[1742551685709,4.6017,1973.5,1973.4,43.10866]
[1742551686116,5.61561,1973.5,1973.4,43.10866]
[1742551686522,4.6017,1973.5,1973.4,43.10866]
[1742551686710,5.61561,1973.5,1973.4,43.10866]
[1742551686913,4.6017,1973.5,1973.4,43.10866]
[1742551687107,1.3357,1973.5,1973.4,43.10866]
[1742551687514,1.3357,1973.5,1973.4,43.77936]
[1742551689823,2.34961,1973.5,1973.4,41.81396]
[1742551690013,3.02621,1973.5,1973.4,41.81396]
[1742551690212,3.02621,1973.5,1973.4,40.8]
[1742551690412,3.02621,1973.5,1973.4,41.81396]
[1742551693716,3.02621,1973.5,1973.4,40.8]
[1742551693920,3.02621,1973.5,1973.4,41.81396]
[1742551694119,6.29221,1973.5,1973.4,40.8]
[1742551694621,6.29221,1973.5,1973.4,41.81396]
[1742551695921,2.0123,1973.5,1973.4,41.81396]
[1742551696119,1.3357,1973.5,1973.4,41.81396]
[1742551696319,1.3357,1973.5,1973.4,42.52106]
[1742551697417,4.94981,1973.7,1973.6,1.01386]
[1742551697611,6.30231,1973.7,1973.6,1.01386]
[1742551697815,5.2885,1973.7,1973.6,1.01386]
[1742551698027,5.2885,1973.7,1973.6,2.31706]
[1742551698925,6.30231,1973.7,1973.6,2.31706]
[1742551699226,3.03631,1973.7,1973.6,2.31706]
[1742551700229,1.01391,1973.6,1973.4,40.8]
[1742551700423,1.01391,1973.5,1973.4,41.81391]
[1742551700628,1.01391,1973.5,1973.4,43.19121]
[1742551701122,1.01391,1973.5,1973.4,41.81391]
[1742551702722,4.27991,1973.5,1973.4,41.81391]
[1742551708629,4.27991,1973.5,1973.4,41.81396]
[1742551710330,4.27991,1973.5,1973.4,40.8]
[1742551711132,2.3917,1973.6,1973.5,1.01391]
[1742551711439,2.3917,1973.6,1973.5,2.34361]
[1742551717833,3.0624,1973.6,1973.5,2.34361]
[1742551719534,1.01391,1973.5,1973.4,41.81395]
[1742551719731,5.56761,1973.5,1973.4,40.8]
[1742551719934,5.56761,1973.5,1973.4,41.81396]
[1742551720638,5.56761,1973.5,1973.4,40.8]
[1742551720840,5.56761,1973.5,1973.4,41.81396]
[1742551723039,5.56761,1973.5,1973.4,43.22876]
[1742551727236,5.56761,1973.5,1973.4,40.8]
[1742551727634,5.56761,1973.5,1973.4,41.81396]
[1742551727834,5.56761,1973.5,1973.4,43.10906]
[1742551731343,5.56761,1973.5,1973.4,42.0951]
[1742551731646,5.56761,1973.5,1973.4,43.10906]
[1742551732748,5.56761,1973.5,1973.4,42.0951]
[1742551733148,5.56761,1973.5,1973.4,43.10906]
[1742551733339,5.56761,1973.5,1973.4,42.0951]
[1742551733536,5.56761,1973.5,1973.4,40.8]
[1742551733741,1.01396,1973.4,1973.3,1.3604]
[1742551734045,3.00636,1973.4,1973.3,2.37441]
[1742551734251,3.00636,1973.4,1973.3,42.1604]
[1742551736839,3.00636,1973.4,1973.3,43.17441]
[1742551737245,1.01396,1973.5,1973.4,1.01393]
[1742551737446,2.37456,1973.5,1973.4,2.34803]
[1742551737850,2.37456,1973.5,1973.4,3.05813]
[1742551739255,2.37456,1973.5,1973.3,40.8]
[1742551739256,1.01396,1973.4,1973.3,40.8]
[1742551739454,2.35116,1973.4,1973.3,43.12771]
[1742551740053,2.35116,1973.4,1973.3,40.8]
[1742551740451,1.01401,1973.3,1973.2,1.3137]
[1742551740753,1.01406,1973.2,1973.1,1.01408]
[1742551740961,1.01406,1973.2,1973.1,43.12778]
[1742551741157,2.35126,1973.2,1973.1,43.12778]
[1742551742756,2.35126,1973.2,1973.1,42.1137]
[1742551743560,5.61726,1973.2,1973.1,40.8]
[1742551744658,5.61726,1973.2,1973.0,2.42146]
[1742551744659,1.01412,1973.1,1973.0,2.42146]
[1742551744856,2.38642,1973.1,1973.0,2.42146]
[1742551745053,2.38642,1973.1,1973.0,1.4073]
[1742551745249,1.01422,1972.9,1972.8,1.02186052]
[1742551745759,1.01422,1972.9,1972.8,41.82186052]
[1742551746463,2.29832,1972.9,1972.8,42.12410052]
[1742551748049,2.29832,1972.9,1972.8,40.80760052]
[1742551748254,2.29832,1972.9,1972.8,0.00760052]
[1742551750858,2.29832,1972.9,1972.8,1.31740052]
[1742551751859,2.29832,1972.9,1972.8,0.00760052]
[1742551752462,1.01432,1972.7,1972.6,0.80385]
[1742551752659,7.48912,1972.7,1972.6,0.80385]
[1742551753058,8.15852,1972.7,1972.6,0.80385]
[1742551757775,8.15852,1972.7,1972.6,2.18985]
[1742551758272,4.95072,1972.7,1972.6,2.18985]
[1742551759470,4.28132,1972.7,1972.6,2.18985]
[1742551759671,4.28887052,1972.8,1972.7,1.01432]
[1742551759872,4.28887052,1972.8,1972.7,2.40032]
[1742551760071,5.65367052,1972.8,1972.7,2.40032]
[1742551761067,5.65367052,1972.8,1972.7,1.386]
[1742551761476,6.31487052,1972.8,1972.7,1.386]
[1742551764369,1.01432,1972.7,1972.6,0.80385]
[1742551764664,3.00732,1972.7,1972.6,2.13735]
[1742551765369,3.00732,1972.7,1972.6,0.80385]
[1742551766673,3.00732,1972.7,1972.6,2.13735]
[1742551768181,3.00732,1972.7,1972.6,0.80385]
[1742551769274,6.21512,1972.7,1972.6,0.80385]
[1742551772686,6.30300145,1972.7,1972.6,0.80385]
[1742551773584,6.30300235,1972.7,1972.6,0.80385]
[1742551774182,7.24899103,1972.7,1972.6,0.80385]
[1742551774779,7.2489859,1972.7,1972.6,0.80385]
[1742551775179,7.24918651,1972.7,1972.6,0.80385]
[1742551775579,6.30300275,1972.7,1972.6,0.80385]
[1742551776285,7.24928008,1972.7,1972.6,0.80385]
[1742551776487,6.30300275,1972.7,1972.6,0.80385]
[1742551776687,7.24926398,1972.7,1972.6,0.80385]
[1742551776880,6.30300163,1972.7,1972.6,0.80385]
[1742551777079,7.24927799,1972.7,1972.6,0.80385]
[1742551777383,6.30300163,1972.7,1972.6,0.80385]
[1742551778684,7.24936285,1972.7,1972.6,0.80385]
[1742551779187,7.24934507,1972.7,1972.6,0.80385]
[1742551779579,6.21512,1972.7,1972.6,0.80385]
[1742551780180,6.30301018,1972.7,1972.6,0.80385]
[1742551780383,6.21512,1972.7,1972.6,0.80385]
[1742551780690,7.24934933,1972.7,1972.6,0.80385]
[1742551783390,21.25711483,1972.7,1971.2,3.2078]
[1742551783592,1.01489,1971.6,1971.5,1.3454]
[1742551783888,4.28189,1971.6,1971.5,2.36034]
[1742551784090,4.28189,1971.6,1971.5,1.3454]
[1742551784293,4.28189,1971.6,1971.5,2.36034]
[1742551784490,4.28189,1971.6,1971.5,1.3454]
[1742551791986,5.62179,1971.6,1971.5,1.3454]
[1742551793095,6.29799,1971.6,1971.5,1.3454]
[1742551799897,5.62179,1971.6,1971.5,1.3454]
[1742551800995,0.00760052,1971.7,1971.5,2.36034]
[1742551801200,0.00760052,1971.7,1971.6,5.54449]
[1742551801393,1.02244052,1971.7,1971.6,5.54449]
[1742551801793,1.02244052,1971.7,1971.6,2.33669]
[1742551802605,2.38004052,1971.7,1971.6,1.3218]
[1742551802998,1.01494,1971.5,1971.4,40.80760052]
[1742551803201,7.49074,1971.5,1971.4,0.00760052]
[1742551803503,7.49074,1971.5,1971.4,5.2e-07]
[1742551803810,7.57859448,1971.5,1971.4,5.2e-07]
[1742551804402,7.57859448,1971.5,1970.9,41.4841]
[1742551804403,1.0152,1971.0,1970.9,41.4841]
[1742551804594,1.0152,1971.0,1970.9,42.7765]
[1742551805096,2.3936,1971.0,1970.9,42.0924]
[1742551806599,1.01525,1970.9,1970.8,0.00760052]
[1742551806797,5.56745,1970.9,1970.8,0.00760052]
[1742551806992,6.97485,1970.9,1970.8,0.00760052]
[1742551807201,7.06267651,1970.9,1970.8,0.00760052]
[1742551807497,7.47092239,1970.9,1970.8,0.00760052]
[1742551807702,1.01545,1970.5,1970.4,40.8]
[1742551807893,4.28345,1970.5,1970.4,40.8]
[1742551808094,6.27455,1970.5,1970.4,40.8]
[1742551808291,1.0155,1970.4,1970.3,1.4141]
[1742551808492,1.01561,1970.2,1970.1,0.6721]
[1742551808894,1.01561,1970.2,1970.1,41.4721]
[1742551809090,1.01561,1970.2,1970.1,42.48776]
[1742551809801,1.01561,1970.2,1970.1,43.79656]
[1742551810008,5.71019052,1970.3,1970.2,1.01561]
[1742551810190,5.71019052,1970.3,1970.2,1.3088]
[1742551811091,4.29216052,1970.3,1970.2,2.32441]
[1742551811609,4.29216052,1970.3,1970.2,43.12441]
[1742551811904,4.29216052,1970.3,1970.2,42.1088]
[1742551812197,4.29216052,1970.3,1970.2,40.8]
[1742551812701,5.58306052,1970.3,1970.2,40.8]
[1742551814198,5.58306052,1970.3,1970.2,42.1612]
[1742551820709,5.58306052,1970.3,1970.2,1.3612]
[1742551821104,5.58306052,1970.3,1970.2,42.1612]
[1742551823208,3.27760052,1970.3,1970.2,43.17681]
[1742551823405,0.00760052,1970.3,1970.2,43.85281]
[1742551823598,0.00760052,1970.3,1970.2,47.06061]
[1742551824707,0.00760052,1970.3,1970.2,49.56061]
[1742551824912,1.01544,1970.6,1970.5,1.01545]
[1742551825506,2.36796,1970.7,1970.6,1.0154]
[1742551825704,2.36796,1970.7,1970.6,1.6689]
[1742551825904,2.36796,1970.7,1970.6,2.0698]
[1742551826111,2.36796,1970.7,1970.6,3.0852]
[1742551827522,3.27760052,1970.8,1970.6,3.0852]
[1742551827709,1.01535,1970.7,1970.6,1.6689]
[1742551828109,2.38435,1970.7,1970.6,42.4689]
[1742551828421,1.0154,1970.6,1970.5,0.6573]
[1742551828715,2.3844,1970.6,1970.5,41.4573]
[1742551828918,3.0895,1970.6,1970.5,40.8]
[1742551829106,1.0155,1970.4,1970.3,5.57954]
[1742551829303,1.0155,1970.4,1970.3,2.30954]
[1742551829510,1.369,1970.5,1970.4,1.0155]
[1742551829719,4.28543,1970.6,1970.5,1.01545]
[1742551830117,2.38443,1970.6,1970.5,1.01545]
[1742551830411,2.3844,1970.6,1970.5,1.01545]
[1742551834517,1.369,1970.6,1970.5,1.01545]
[1742551834721,5.61304052,1970.8,1970.7,1.01535]
[1742551834923,4.29294052,1970.8,1970.7,1.01535]
[1742551835420,1.01543,1970.7,1970.6,1.01536]
[1742551839727,1.01545,1970.6,1970.4,40.8]
[1742551840025,1.01545,1970.5,1970.4,41.81546]
[1742551840634,1.01545,1970.5,1970.4,40.8]
[1742551842129,1.01545,1970.5,1970.4,41.8155]
[1742551843129,2.33145,1970.6,1970.5,1.01545]
[1742551843335,1.01545,1970.5,1970.4,40.8]
[1742551844435,4.28545,1970.5,1970.4,40.8]
[1742551844828,1.01566,1970.1,1970.0,1.02327052]
[1742551845334,1.01566,1970.1,1970.0,41.82327052]
[1742551848829,1.01566,1970.1,1970.0,40.80760052]
[1742551850427,4.28566,1970.1,1970.0,40.80760052]
[1742551854336,5.62886,1970.1,1970.0,40.80760052]
[1742551854537,5.62886,1970.1,1970.0,0.00760052]
[1742551860444,5.62886,1970.1,1969.6,1.01587]
[1742551860445,1.01592,1969.6,1969.5,1.01594]
[1742551860743,1.01592,1969.6,1969.5,43.15844]
[1742551861537,1.02351052,1969.7,1969.6,1.01587]
[1742551861740,2.33381052,1969.7,1969.6,2.43507]
[1742551863541,0.00760052,1969.7,1969.6,2.43507]
[1742551864135,0.00760052,1969.7,1969.6,43.23507]
[1742551865449,1.02347052,1969.7,1969.6,43.23507]
[1742551867050,0.00760052,1969.7,1969.6,43.23507]
[1742551867242,0.00760052,1969.7,1969.6,46.44287]
[1742551870551,0.00760052,1969.7,1969.6,41.81587]
[1742551870748,1.02347052,1969.7,1969.6,43.18687]
[1742551871053,0.00760052,1969.7,1969.6,43.86557]